[Event "Charlotte Spring-B 2022"]
[Site "Charlotte"]
[Date "2022.03.18"]
[Round "4.4"]
[White "Arjun, Vishnuvardhan"]
[Black "Johnson, Donald"]
[Result "1-0"]
[ECO "A00"]
[WhiteElo "2268"]
[BlackElo "2060"]
[Annotator "ChessBase"]
[PlyCount "57"]
[EventDate "2022.03.16"]
[EventType "tourn"]
[EventCountry "USA"]
[SourceTitle "playchess.com"]
[Source "ChessBase"]
[SourceQuality "1"]
[TimeControl "5400+30"]

1. b4 {[%emt 0:10:07]} c6 {[%emt 0:02:23]} 2. e3 {[%emt 0:01:05]} Qb6 {[%emt 0:00:37]} 3. a3 {[%emt 0:02:14]} a5 {[%emt 0:00:09]} 4. b5 {[%emt 0:01:07]} cxb5 {[%emt 0:02:33]} 5. Nc3 {[%emt 0:00:08]} b4 {[%emt 0:00:19]} 6. axb4 {[%emt 0:06:10]} Qxb4 {[%emt 0:00:06]} 7. Ba3 {[%emt 0:09:26]} Qb6 {[%emt 0:02:21]} 8. Nd5 {[%emt 0:01:39]} Qc6 {[%emt 0:01:53]} 9. e4 {[%emt 0:01:31]} Na6 {[%emt 0:06:59]} 10. Nf3 {[%emt 0:24:04]} Qg6 {[%emt 0:10:04]} 11. Bd3 {[%emt 0:01:51]} e6 {[%emt 0:13:13]} 12. Bxf8 {[%emt 0:03:58]} Kxf8 {[%emt 0:01:11]} 13. Nb6 {[%emt 0:00:29]} Rb8 {[%emt 0:00:51]} 14. Rxa5 {[%emt 0:07:28]} Qxg2 {[%emt 0:08:59]} 15. Rg1 {[%emt 0:00:43]} Qh3 {[%emt 0:00:24]} 16. Rg3 {[%emt 0:00:23]} Qh6 {[%emt 0:00:19]} 17. Qb1 {[%emt 0:00:26]} Qf4 {[%emt 0:04:35]} 18. Nxc8 {[%emt 0:05:15]} Rxc8 {[%emt 0:05:56]} 19. Qxb7 {[%emt 0:00:18]} Rb8 {[%emt 0:01:25]} 20. Qxa6 {[%emt 0:00:12]} Nf6 {[%emt 0:00:07]} 21. e5 {[%emt 0:02:25]} Ne4 {[%emt 0:01:06]} 22. Ra4 {[%emt 0:01:49]} f5 {[%emt 0:02:56]} 23. Bxe4 {[%emt 0:01:46]} Rb1+ {[%emt 0:00:16]} 24. Ke2 {[%emt 0:00:03]} g5 {[%emt 0:00:54]} 25. Qd6+ {[%emt 0:00:48]} Ke8 {[%emt 0:00:15]} 26. Ra8+ {[%emt 0:00:03]} Kf7 {[%emt 0:00:03]} 27. Qxd7+ {[%emt 0:00:14]} Kg6 {[%emt 0:00:04]} 28. Qxe6+ {[%emt 0:00:24]} Kh5 {[%emt 0:00:02]} 29. Rxg5+ {[%emt 0:00:12]} 1-0

[Event "Charlotte Spring-B 2022"]
[Site "Charlotte"]
[Date "2022.03.18"]
[Round "4.5"]
[White "Adewumi, Tanitoluwa"]
[Black "Poliannikov, Danila"]
[Result "1-0"]
[ECO "A65"]
[WhiteElo "2190"]
[BlackElo "2273"]
[Annotator "ChessBase"]
[PlyCount "79"]
[EventDate "2022.03.16"]
[EventType "tourn"]
[EventCountry "USA"]
[SourceTitle "playchess.com"]
[Source "ChessBase"]
[SourceQuality "1"]
[TimeControl "5400+30"]

1. d4 {[%emt 0:00:04]} Nf6 {[%emt 0:00:03]} 2. c4 {[%emt 0:00:10]} c5 {[%emt 0:00:03]} 3. d5 {[%emt 0:00:05]} e6 {[%emt 0:00:02]} 4. Nc3 {[%emt 0:00:06]} exd5 {[%emt 0:00:02]} 5. cxd5 {[%emt 0:00:07]} d6 {[%emt 0:00:01]} 6. e4 {[%emt 0:00:07]} g6 {[%emt 1:33:19]} 7. Be2 {[%emt 0:00:05]} Bg7 {[%emt 0:00:00]} 8. Be3 {[%emt 0:00:17]} O-O {[%emt 0:00:00]} 9. Nf3 {[%emt 0:00:06]} Bg4 {[%emt 0:00:00]} 10. Nd2 {[%emt 0:00:09]} Bxe2 {[%emt 0:00:00]} 11. Qxe2 {[%emt 0:00:01]} Qe7 {[%emt 0:00:00]} 12. O-O {[%emt 0:02:14]} Nbd7 {[%emt 0:00:00]} 13. Rae1 {[%emt 0:02:20]} a6 {[%emt 0:00:00]} 14. a4 {[%emt 0:00:01]} Ne8 {[%emt 0:00:00]} 15. f4 {[%emt 0:11:59]} Nc7 {[%emt 0:00:00]} 16. e5 {[%emt 0:19:43]} dxe5 {[%emt 0:00:00]} 17. Nde4 {[%emt 0:02:51]} exf4 {[%emt 0:00:00]} 18. Bxf4 {[%emt 0:00:02]} Ne8 {[%emt 0:00:00]} 19. Qd2 {[%emt 0:25:39]} Qd8 {[%emt 0:06:30]} 20. Kh1 {[%emt 0:07:12]} Nef6 {[%emt 0:00:00]} 21. Bd6 {[%emt 0:10:02]} Re8 {[%emt 0:00:00]} 22. Qf4 {[%emt 0:00:58]} Kh8 {[%emt 0:00:00]} 23. Bc7 {[%emt 0:01:01]} Qe7 {[%emt 0:00:00]} 24. Bd6 {[%emt 0:02:42]} Qd8 {[%emt 0:00:00]} 25. Ng5 {[%emt 0:03:45]} Kg8 {[%emt 0:00:00]} 26. Bc7 {[%emt 0:00:09]} Rxe1 {[%emt 0:00:00]} 27. Rxe1 {[%emt 0:00:34]} Qf8 {[%emt 0:00:00]} 28. Bd6 {[%emt 0:04:11]} Nh5 {[%emt 0:00:00]} 29. Qf1 {[%emt 0:07:34]} Qxd6 {[%emt 0:00:00]} 30. Qxf7+ {[%emt 0:00:25]} Kh8 {[%emt 0:00:00]} 31. Nce4 {[%emt 0:00:26]} Qf4 {[%emt 0:00:49]} 32. Qxd7 {[%emt 0:00:28]} Rf8 {[%emt 0:00:01]} 33. g3 {[%emt 0:00:34]} Qf5 {[%emt 0:01:27]} 34. Qxf5 {[%emt 0:00:01]} gxf5 {[%emt 0:00:22]} 35. Nxc5 {[%emt 0:00:06]} Bf6 {[%emt 0:03:58]} 36. Nge6 {[%emt 0:00:17]} Rb8 {[%emt 0:01:01]} 37. d6 {[%emt 0:00:12]} Ng7 {[%emt 0:00:05]} 38. d7 {[%emt 0:00:48]} Kg8 {[%emt 0:01:16]} 39. Nxg7 {[%emt 0:00:13]} Kxg7 {[%emt 0:00:23]} 40. Re8 {[%emt 0:00:45]} 1-0

[Event "Charlotte Spring-B 2022"]
[Site "Charlotte"]
[Date "2022.03.19"]
[Round "5.5"]
[White "Ngo, Bach"]
[Black "Almeida Saenz, Alfonso"]
[Result "1-0"]
[ECO "D50"]
[WhiteElo "2306"]
[BlackElo "2259"]
[Annotator "RC"]
[PlyCount "149"]
[EventDate "2022.03.16"]
[EventType "tourn"]
[EventCountry "USA"]
[SourceTitle "playchess.com"]
[Source "ChessBase"]
[SourceQuality "1"]
[TimeControl "5400+30"]

1. d4 {[%emt 1:31:00]} d5 {[%emt 1:31:00]} 2. Nf3 {[%emt 0:00:00]} Nf6 {[%emt 0:00:00]} 3. c4 {[%emt 0:00:00]} e6 {[%emt 0:00:00]} 4. Nc3 {[%emt 0:00:00]} c5 {[%emt 0:00:00]} 5. cxd5 {[%emt 0:00:00]} cxd4 {[%emt 0:00:00]} 6. Qxd4 {[%emt 0:00:00]} exd5 {[%emt 0:00:00]} 7. Bg5 {[%emt 0:00:00]} Be7 {[%emt 0:00:00]} 8. e3 {[%emt 0:00:00]} Nc6 {[%emt 0:00:00]} 9. Bb5 {[%emt 0:00:00]} O-O {[%emt 0:00:00]} 10. Qd3 {[%emt 0:00:00]} a6 {[%emt 0:00:00]} 11. Ba4 {[%emt 0:00:00]} Bg4 {[%emt 0:00:00]} 12. Bxc6 {[%emt 0:00:00]} bxc6 {[%emt 0:00:00]} 13. Ne5 {[%emt 0:00:00]} Qc8 {[%emt 0:00:00]} 14. Nxg4 {[%emt 0:00:00]} Qxg4 {[%emt 0:00:00]} 15. Bxf6 {[%emt 0:00:00]} Bxf6 {[%emt 0:00:00]} 16. O-O {[%emt 0:00:00]} Rfd8 {[%emt 0:00:00]} 17. Rac1 {[%emt 0:00:00]} d4 {[%emt 0:00:00]} 18. Qc4 {[%emt 0:00:00]} Rd6 {[%emt 0:00:00]} 19. Ne2 {[%emt 0:00:00]} h5 {[%emt 0:00:00]} 20. Nxd4 {[%emt 0:00:00]} Bxd4 {[%emt 0:00:00]} 21. exd4 {[%emt 0:00:00]} Rg6 {[%emt 0:00:00]} 22. g3 {[%emt 0:00:00]} h4 {[%emt 0:00:00]} 23. d5 {[%emt 0:00:00]} cxd5 {[%emt 0:00:00]} 24. Qxd5 {[%emt 0:00:00]} Rb8 {[%emt 0:00:00]} 25. Rc7 {[%emt 0:00:00]} Qe6 {[%emt 0:00:00]} 26. Qxe6 {[%emt 0:00:00]} Rxe6 {[%emt 0:00:00]} 27. Rc2 {[%emt 0:00:00]} h3 {[%emt 0:00:00]} 28. Rfc1 {[%emt 0:00:00]} Rb5 {[%emt 0:00:00]} 29. Kf1 {[%emt 0:00:00]} g6 {[%emt 0:00:00]} 30. b3 {[%emt 0:00:00]} Ra5 {[%emt 0:00:00]} 31. Rd1 {[%emt 0:00:00]} Kg7 {[%emt 0:00:00]} 32. Rdd2 {[%emt 0:00:00]} g5 {[%emt 0:00:00]} 33. f3 {[%emt 0:00:00]} Kg6 {[%emt 0:00:00]} 34. Kf2 {[%emt 0:00:00]} Rf5 {[%emt 0:00:00]} 35. g4 {[%emt 0:00:00]} Rf4 {[%emt 0:00:00]} 36. Rc4 {[%emt 0:00:00]} Rff6 {[%emt 0:00:00]} 37. Rc3 {[%emt 0:00:00]} Re4 {[%emt 0:00:00]} 38. Kg3 {[%emt 0:00:00]} Re1 {[%emt 0:00:00]} 39. Kxh3 {[%emt 0:00:00]} Rg1 {[%emt 0:00:00]} 40. Rg2 {[%emt 0:00:00]} Rf1 {[%emt 0:00:00]} 41. Kg3 {[%emt 0:00:00]} Rd6 {[%emt 0:00:00]} 42. Rgc2 {[%emt 0:00:00]} Rg1+ {[%emt 0:00:00]} 43. Kf2 {[%emt 0:00:00]} Rdd1 {[%emt 0:00:00]} 44. Ke3 {[%emt 0:00:00]} Rde1+ {[%emt 0:00:00]} 45. Kd4 {[%emt 0:00:00]} Rd1+ {[%emt 0:00:00]} 46. Kc5 {[%emt 0:00:00]} f5 {[%emt 0:00:00]} 47. Kb6 {[%emt 0:00:00]} fxg4 {[%emt 0:00:00]} 48. fxg4 {[%emt 0:00:00]} Rxg4 {[%emt 0:00:00]} 49. Kxa6 {[%emt 0:00:00]} Rb4 {[%emt 0:00:00]} 50. Rc6+ {[%emt 0:00:00]} Kh5 {[%emt 0:00:00]} 51. Rb6 {[%emt 0:00:00]} Rh4 {[%emt 0:00:00]} 52. Rb8 {[%emt 0:00:00]} Rd6+ {[%emt 0:00:00]} 53. Kb5 {[%emt 0:00:00]} Rf4 {[%emt 0:00:00]} 54. b4 {[%emt 0:00:00]} Rd5+ {[%emt 0:00:00]} 55. Kc6 {[%emt 0:00:00]} Re5 {[%emt 0:00:00]} 56. b5 {[%emt 0:00:00]} Rf6+ {[%emt 0:00:00]} 57. Kd7 {[%emt 0:00:00]} Rf7+ {[%emt 0:00:00]} 58. Kd6 {[%emt 0:00:00]} Rfe7 {[%emt 0:00:00]} 59. b6 {[%emt 0:00:00]} R7e6+ {[%emt 0:00:00]} 60. Kd7 {[%emt 0:00:00]} Re7+ {[%emt 0:00:00]} 61. Kc6 {[%emt 0:00:00]} R7e6+ {[%emt 0:00:00]} 62. Kb7 {[%emt 0:00:00]} Ra5 {[%emt 0:00:00]} 63. Rbc8 {[%emt 0:00:00]} Kh4 {[%emt 0:00:00]} 64. R8c6 {[%emt 0:00:00]} Re7+ {[%emt 0:00:00]} 65. Rc7 {[%emt 0:00:00]} Re6 {[%emt 0:00:00]} 66. Rb2 {[%emt 0:00:00]} g4 {[%emt 0:00:00]} 67. Kb8 {[%emt 0:00:00]} Rf6 {[%emt 0:00:00]} 68. Rd7 {[%emt 0:03:37]} Rf8+ {[%emt 0:00:00]} 69. Kc7 {[%emt 0:00:37]} Rc5+ {[%emt 0:00:00]} 70. Kd6 {[%emt 0:00:20]} Rcf5 {[%emt 0:00:00]} 71. b7 {[%emt 0:00:36]} R8f6+ {[%emt 0:00:00]} 72. Ke7 {[%emt 0:00:21]} Rf7+ {[%emt 0:00:00]} 73. Kd8 {[%emt 0:00:13]} Rf8+ {[%emt 0:00:00]} 74. Kc7 {[%emt 0:00:07]} Rc5+ {[%emt 0:00:00]} 75. Kd6 {[%emt 0:00:12]} 1-0

[Event "Charlotte Spring-B 2022"]
[Site "Charlotte"]
[Date "2022.03.19"]
[Round "6.1"]
[White "Wang, Tianqi"]
[Black "Almeida Saenz, Alfonso"]
[Result "1-0"]
[ECO "B23"]
[WhiteElo "2322"]
[BlackElo "2259"]
[Annotator "NA"]
[PlyCount "49"]
[EventDate "2022.03.16"]
[EventType "tourn"]
[EventCountry "USA"]
[SourceTitle "playchess.com"]
[Source "ChessBase"]
[SourceQuality "1"]
[TimeControl "5400+30"]

1. e4 {[%emt 0:00:05]} c5 {[%emt 0:02:15]} 2. Nc3 {[%emt 0:00:08]} d6 {[%emt 0:00:29]} 3. f4 {[%emt 0:00:08]} Nc6 {[%emt 0:00:08]} 4. Nf3 {[%emt 0:00:09]} g6 {[%emt 0:00:17]} 5. Bc4 {[%emt 0:00:08]} Bg7 {[%emt 0:00:09]} 6. O-O {[%emt 0:00:06]} Nf6 {[%emt 0:01:12]} 7. d3 {[%emt 0:00:08]} Be6 {[%emt 0:00:22]} 8. Bb5 {[%emt 0:10:01]} Qb6 {[%emt 0:05:04]} 9. Qe1 {[%emt 0:01:32]} a6 {[%emt 0:00:18]} 10. Ba4 {[%emt 0:01:45]} O-O {[%emt 0:01:25]} 11. Bxc6 {[%emt 0:02:54]} Qxc6 {[%emt 0:00:07]} 12. Qh4 {[%emt 0:00:08]} c4 {[%emt 0:24:13]} 13. f5 {[%emt 0:05:07]} gxf5 $11 {[%emt 0:01:11]} 14. Bh6 {[%emt 0:00:49]} Bxh6 {[%emt 0:02:20]} 15. Qxh6 {[%emt 0:00:41]} Qb6+ {[%emt 0:00:00]} 16. d4 {[%emt 0:09:06]} Qxb2 {[%emt 0:00:32]} 17. Na4 {[%emt 0:08:23]} Qxc2 {[%emt 0:01:05]} 18. Ng5 {[%emt 0:05:36]} Qe2 {[%emt 0:02:02]} 19. Rf3 {[%emt 0:08:25]} Qd2 {[%emt 0:00:45]} 20. Raf1 {[%emt 0:03:16]} Qxd4+ {[%emt 0:00:33]} 21. Kh1 {[%emt 0:00:18]} Rfc8 {[%emt 0:03:51]} 22. Rg3 {[%emt 0:02:54]} Ng4 {[%emt 0:01:28]} 23. Rxg4 {[%emt 0:00:35]} Qg7 {[%emt 0:00:03]} 24. Nxe6 {[%emt 0:01:03]} Qxg4 {[%emt 0:00:06]} 25. Ng5 {[%emt 0:00:03]} 1-0

[Event "Charlotte Spring-B 2022"]
[Site "Charlotte"]
[Date "2022.03.19"]
[Round "6.2"]
[White "Plotkin, Mark"]
[Black "Ngo, Bach"]
[Result "0-1"]
[ECO "D37"]
[WhiteElo "2400"]
[BlackElo "2306"]
[Annotator "NA"]
[PlyCount "204"]
[EventDate "2022.03.16"]
[EventType "tourn"]
[EventCountry "USA"]
[SourceTitle "playchess.com"]
[Source "ChessBase"]
[SourceQuality "1"]
[TimeControl "5400+30"]

1. c4 {[%emt 0:07:46]} Nf6 {[%emt 0:00:10]} 2. Nc3 {[%emt 0:00:05]} e6 {[%emt 0:00:15]} 3. Nf3 {[%emt 0:01:20]} d5 {[%emt 0:02:47]} 4. e3 {[%emt 0:00:56]} Be7 {[%emt 0:00:39]} 5. d4 {[%emt 0:01:44]} O-O {[%emt 0:00:25]} 6. Bd3 {[%emt 0:02:45]} dxc4 {[%emt 0:02:01]} 7. Bxc4 {[%emt 0:00:09]} a6 {[%emt 0:00:09]} 8. a4 {[%emt 0:00:42]} b6 {[%emt 0:01:11]} 9. O-O {[%emt 0:03:28]} Bb7 {[%emt 0:00:21]} 10. Qe2 {[%emt 0:00:42]} c5 {[%emt 0:06:31]} 11. dxc5 {[%emt 0:04:48]} bxc5 {[%emt 0:03:27]} 12. e4 {[%emt 0:08:18]} Nc6 {[%emt 0:01:20]} 13. e5 {[%emt 0:02:38]} Nd5 $11 {[%emt 0:07:02]} (13... Nd7 $5 {[%cal Rc6d4]}) 14. Rd1 {[%emt 0:03:51]} Na5 {[%emt 0:03:53]} 15. Bd3 {[%emt 0:13:24]} Nb3 {[%emt 0:04:25]} 16. Rb1 {[%emt 0:09:17]} Nxc1 {[%emt 0:06:32]} 17. Rbxc1 {[%emt 0:00:07]} Qb6 {[%emt 0:00:59]} 18. Bb1 {[%emt 0:06:41]} Rfd8 {[%emt 0:04:50]} 19. Ne4 {[%emt 0:03:48]} Qb3 {[%emt 0:08:55]} 20. g3 {[%emt 0:11:49]} h6 {[%emt 0:05:04]} 21. Bc2 {[%emt 0:01:19]} Qb6 {[%emt 0:01:07]} 22. Nfd2 {[%emt 0:00:22]} Nb4 {[%emt 0:01:22]} 23. Nc4 {[%emt 0:00:18]} Qc7 {[%emt 0:00:47]} 24. Ncd6 {[%emt 0:01:55]} Nxc2 {[%emt 0:38:18]} 25. Rxc2 {[%emt 0:00:49]} Bxe4 {[%emt 0:00:00]} 26. Qxe4 {[%emt 0:00:02]} Rab8 {[%emt 0:00:00]} 27. Qf4 {[%emt 0:06:41]} Bxd6 {[%emt 0:00:00]} 28. exd6 {[%emt 0:00:15]} Qc6 {[%emt 0:00:00]} 29. Rdd2 {[%emt 0:01:49]} Rb6 {[%emt 0:00:00]} 30. b4 {[%emt 0:00:55]} Qb7 {[%emt 0:00:00]} 31. Qe5 {[%emt 0:04:01]} Rxb4 {[%emt 0:00:00]} 32. Qxc5 {[%emt 0:00:14]} Rb1+ {[%emt 0:00:00]} 33. Rc1 {[%emt 0:00:02]} Qb4 {[%emt 0:00:00]} 34. Qxb4 {[%emt 0:01:30]} Rxb4 {[%emt 0:00:00]} 35. Rc7 {[%emt 0:00:55]} Rxa4 {[%emt 0:00:00]} 36. Rb2 {[%emt 0:00:14]} Ra5 {[%emt 0:00:00]} 37. Rb6 {[%emt 0:00:58]} Rd5 {[%emt 0:00:00]} 38. Rxa6 {[%emt 0:00:10]} R8xd6 {[%emt 0:00:00]} 39. Ra8+ {[%emt 0:00:15]} Rd8 {[%emt 0:00:00]} 40. Rxd8+ {[%emt 0:00:05]} Rxd8 {[%emt 0:00:04]} 41. h4 {[%emt 0:00:06]} g5 {[%emt 0:00:07]} 42. hxg5 {[%emt 0:00:10]} hxg5 {[%emt 0:00:02]} 43. Kg2 {[%emt 0:00:08]} Kg7 {[%emt 0:00:04]} 44. Rc5 {[%emt 0:00:27]} Rd5 {[%emt 0:09:43]} 45. Rc8 {[%emt 0:00:13]} Kg6 {[%emt 0:00:00]} 46. g4 {[%emt 0:00:10]} Rd3 {[%emt 0:00:00]} 47. Ra8 {[%emt 0:00:12]} Kg7 {[%emt 0:00:00]} 48. Rb8 {[%emt 0:00:06]} Kf6 {[%emt 0:00:00]} 49. Rg8 {[%emt 0:00:07]} Rd5 {[%emt 0:00:00]} 50. Kg3 {[%emt 0:00:10]} Ke7 {[%emt 0:03:00]} 51. Ra8 {[%emt 0:00:28]} Rd3+ {[%emt 0:00:00]} 52. Kg2 {[%emt 0:00:07]} Rc3 {[%emt 0:00:00]} 53. Rg8 {[%emt 0:00:05]} Rc5 {[%emt 0:00:00]} 54. Ra8 {[%emt 0:00:06]} Kd6 {[%emt 0:00:00]} 55. Rf8 {[%emt 0:00:05]} Rc7 {[%emt 0:00:00]} 56. Rg8 {[%emt 0:00:05]} f6 {[%emt 0:00:00]} 57. Ra8 {[%emt 0:00:05]} Rc5 {[%emt 0:00:00]} 58. Ra4 {[%emt 0:00:25]} Kd5 {[%emt 0:00:00]} 59. f3 {[%emt 0:00:07]} Rc6 {[%emt 0:00:00]} 60. Kg3 {[%emt 0:00:11]} Rc4 {[%emt 0:00:00]} 61. Ra5+ {[%emt 0:00:05]} Rc5 {[%emt 0:00:00]} 62. Ra4 {[%emt 0:00:04]} f5 {[%emt 0:00:00]} 63. gxf5 {[%emt 0:00:04]} exf5 {[%emt 0:00:00]} 64. Ra8 {[%emt 0:00:04]} Ke5 {[%emt 0:00:00]} 65. Re8+ {[%emt 0:00:15]} Kf6 {[%emt 0:00:00]} 66. Rf8+ {[%emt 0:00:02]} Kg7 {[%emt 0:00:00]} 67. Ra8 {[%emt 0:00:15]} Rc3 {[%emt 0:00:00]} 68. Ra7+ {[%emt 0:00:05]} Kg6 {[%emt 0:00:00]} 69. Kg2 {[%emt 0:02:30]} Rc2+ {[%emt 0:00:00]} 70. Kf1 {[%emt 0:00:12]} Kf6 {[%emt 0:00:00]} 71. Ra5 {[%emt 0:00:07]} Rb2 {[%emt 0:00:00]} 72. Rc5 {[%emt 0:00:05]} Kg6 {[%emt 0:00:00]} 73. Ra5 {[%emt 0:00:05]} Rc2 {[%emt 0:00:00]} 74. Rb5 {[%emt 0:00:07]} Ra2 {[%emt 0:00:00]} 75. Rc5 {[%emt 0:00:06]} f4 {[%emt 0:00:00]} 76. Rc8 {[%emt 0:00:14]} Kf5 {[%emt 0:00:00]} 77. Rc5+ {[%emt 0:00:13]} Kg6 {[%emt 0:00:00]} 78. Rc8 {[%emt 0:00:04]} Kf6 {[%emt 0:14:00]} 79. Rc5 {[%emt 0:00:15]} Rb2 {[%emt 0:00:00]} 80. Ra5 {[%emt 0:00:04]} Kg6 {[%emt 0:00:00]} 81. Ra8 {[%emt 0:00:04]} Rb5 {[%emt 0:00:00]} 82. Kg2 {[%emt 0:00:18]} Kf5 {[%emt 0:00:00]} 83. Rg8 {[%emt 0:02:22]} Rb2+ {[%emt 0:00:00]} 84. Kf1 {[%emt 0:00:04]} Rd2 {[%emt 0:00:00]} 85. Ke1 {[%emt 0:00:43]} Rc2 {[%emt 0:00:00]} 86. Kf1 {[%emt 0:00:05]} Rh2 {[%emt 0:00:00]} 87. Kg1 {[%emt 0:00:07]} Rd2 {[%emt 0:00:00]} 88. Kf1 {[%emt 0:00:05]} Ke5 {[%emt 0:00:00]} 89. Rxg5+ {[%emt 0:00:31]} Kd4 {[%emt 0:00:00]} 90. Ra5 {[%emt 0:00:10]} Ke3 {[%emt 0:00:00]} 91. Ra3+ {[%emt 0:01:15]} Rd3 {[%emt 0:00:00]} 92. Ra8 {[%emt 0:00:58]} Kxf3 {[%emt 0:00:00]} 93. Kg1 {[%emt 0:00:16]} Rd1+ {[%emt 0:00:00]} 94. Kh2 {[%emt 0:00:01]} Ke2 {[%emt 0:00:00]} 95. Rf8 {[%emt 0:02:37]} f3 {[%emt 0:00:00]} 96. Re8+ {[%emt 0:01:25]} Kf1 {[%emt 0:00:00]} 97. Rf8 {[%emt 0:00:32]} Rd2+ {[%emt 0:00:00]} 98. Kh1 {[%emt 0:00:06]} f2 {[%emt 0:00:00]} 99. Ra8 {[%emt 0:01:42]} Ke1 {[%emt 0:00:00]} 100. Re8+ {[%emt 0:00:19]} Re2 {[%emt 0:00:00]} 101. Rf8 {[%emt 0:00:02]} Re5 {[%emt 0:00:00]} 102. Kg2 {[%emt 0:00:09]} Rg5+ {[%emt 0:00:00]} 0-1

[Event "Charlotte Spring-B 2022"]
[Site "Charlotte"]
[Date "2022.03.19"]
[Round "6.4"]
[White "Adewumi, Tanitoluwa"]
[Black "Rusonik, Max"]
[Result "1/2-1/2"]
[ECO "B13"]
[WhiteElo "2190"]
[BlackElo "2141"]
[Annotator "NA"]
[PlyCount "96"]
[EventDate "2022.03.16"]
[EventType "tourn"]
[EventCountry "USA"]
[SourceTitle "playchess.com"]
[Source "ChessBase"]
[SourceQuality "1"]
[TimeControl "5400+30"]

1. d4 {[%emt 0:00:04]} d5 {[%emt 0:00:14]} 2. Bf4 {[%emt 0:00:06]} c5 {[%emt 0:00:24]} 3. e3 {[%emt 0:00:15]} cxd4 {[%emt 0:00:24]} 4. exd4 {[%emt 0:00:11]} Nc6 {[%emt 1:31:28]} 5. Nf3 {[%emt 0:00:19]} Bf5 {[%emt 0:00:00]} 6. Nbd2 {[%emt 0:01:08]} f6 {[%emt 0:00:00]} 7. c4 {[%emt 0:05:16]} g5 {[%emt 0:00:00]} 8. cxd5 {[%emt 0:04:29]} Qxd5 {[%emt 0:00:00]} 9. Bc4 {[%emt 0:01:50]} Qd7 {[%emt 0:00:00]} 10. Be3 {[%emt 0:01:03]} e6 {[%emt 0:00:00]} 11. O-O {[%emt 0:00:43]} Nge7 {[%emt 0:00:00]} 12. Rc1 {[%emt 0:02:05]} Rc8 {[%emt 0:00:00]} 13. Qe2 {[%emt 0:01:56]} Nd5 {[%emt 0:00:00]} 14. Nb3 {[%emt 0:01:18]} Nb6 {[%emt 0:00:00]} 15. d5 {[%emt 0:04:44]} Nxc4 {[%emt 0:00:00]} 16. dxc6 {[%emt 0:01:04]} Rxc6 {[%emt 0:00:00]} 17. Nfd4 {[%emt 0:18:14]} Nxe3 {[%emt 0:00:00]} 18. Qxe3 {[%emt 0:01:19]} Rxc1 {[%emt 0:00:00]} 19. Rxc1 {[%emt 0:00:05]} Kf7 {[%emt 0:07:30]} 20. Nxf5 {[%emt 0:00:28]} exf5 {[%emt 0:00:00]} 21. Qxa7 {[%emt 0:00:46]} Be7 {[%emt 0:00:00]} 22. Qe3 {[%emt 0:01:58]} Rd8 {[%emt 0:00:00]} 23. g3 {[%emt 0:01:40]} f4 {[%emt 0:00:00]} 24. Qe4 {[%emt 0:00:16]} Qd3 {[%emt 0:00:00]} 25. Qxd3 {[%emt 0:20:17]} Rxd3 {[%emt 0:00:00]} 26. gxf4 {[%emt 0:02:40]} gxf4 {[%emt 0:00:00]} 27. f3 {[%emt 0:01:29]} Rxf3 {[%emt 0:00:00]} 28. Rc7 {[%emt 0:01:28]} Re3 {[%emt 0:00:00]} 29. Rxb7 {[%emt 0:00:36]} Kg6 {[%emt 0:00:00]} 30. a4 {[%emt 0:01:05]} f5 {[%emt 0:00:00]} 31. a5 {[%emt 0:18:41]} Bh4 {[%emt 0:00:00]} 32. Nd2 {[%emt 0:00:36]} Re1+ {[%emt 0:00:00]} 33. Nf1 {[%emt 0:00:07]} Ra1 {[%emt 0:00:30]} 34. b4 {[%emt 0:02:04]} f3 {[%emt 0:00:12]} 35. Rd7 {[%emt 0:01:52]} f4 {[%emt 0:01:24]} 36. Rd3 {[%emt 0:00:48]} f2+ {[%emt 0:01:15]} 37. Kg2 {[%emt 0:00:01]} Kf5 {[%emt 0:05:39]} 38. Rh3 {[%emt 0:01:11]} Kg4 {[%emt 0:00:00]} 39. Rb3 {[%emt 0:00:12]} h6 {[%emt 0:00:00]} 40. b5 {[%emt 0:01:11]} Rxa5 {[%emt 0:00:00]} 41. b6 {[%emt 0:00:27]} Ra8 {[%emt 0:00:00]} 42. b7 {[%emt 0:00:34]} Rb8 {[%emt 0:00:00]} 43. h3+ {[%emt 0:01:13]} Kf5 {[%emt 0:00:00]} 44. Kf3 {[%emt 0:00:23]} Bg3 {[%emt 0:00:00]} 45. Kg2 {[%emt 0:01:11]} Ke4 {[%emt 0:00:02]} 46. Rb5 {[%emt 0:01:15]} Kd3 {[%emt 0:01:03]} 47. Rb3+ {[%emt 0:00:39]} Ke2 {[%emt 0:01:11]} 48. Rb2+ {[%emt 0:00:27]} Kd3 {[%emt 0:00:51]} 1/2-1/2